Cogmind - Beta 15 @@@ ROGUE MODE // 2025.08.05 @ 10:08:31 Player: winnking222 Result: Destroyed by G-34 Mercenary with Small Laser Performance ------------- Evolutions (1) 500 Regions Visited (3) 600 Robots Destroyed (112) 560 Value Destroyed (3064) 3064 Prototype IDs (6) 120 Alien Tech Used (0) 0 Bonus (519) 519 TOTAL SCORE: 5363 Bonus ------- High Alert Combat Kills 519 Cogmind --------- Core Integrity 0/400 Matter 219/300 Energy 280/280 System Corruption 2% Temperature Cool (6) Movement Treading (160) Location -9/Storage Parts ------- > --- POWER (1) -------- Heavy Ion Engine > --- PROPULSION (3) --- Light Treads Light Treads Light Treads > --- UTILITY (3) ------ Improved Heat Sink Large Storage Unit Core Shielding > --- WEAPON (2) ------- Improved Medium Laser Improved Assault Rifle > --- INVENTORY (15) --- Heavy Ion Engine High-capacity Matter Pod (200) Seismic Detector Hacking Suite Hacking Suite Hacking Suite Light EM Pulse Cannon Light EM Pulse Cannon Improved Assault Rifle Improved Assault Rifle Improved Assault Rifle Plasma Cutter Peak State ------------ > --- POWER ------------ Light Nuclear Core > --- PROPULSION ------- Light Treads Light Treads Light Treads > --- UTILITY ---------- Improved Heat Sink Large Storage Unit Hardened Light Armor Plating > --- WEAPON ----------- Improved EM Shotgun Improved Assault Rifle > --- INVENTORY -------- Improved Ion Engine Heavy Ion Engine Light Treads High-capacity Matter Pod Seismic Detector Hardened Light Armor Plating Hacking Suite Hacking Suite Hacking Suite Hacking Suite Light EM Pulse Cannon Light EM Pulse Cannon Minigun Improved Light Cannon Plasma Cutter [Rating: 21] Favorites ----------- Power Heavy Ion Engine Engine Heavy Ion Engine Power Core Light Nuclear Core Propulsion Light Treads Treads Light Treads Leg Aluminum Leg Utility Improved Heat Sink Device Improved Heat Sink Storage Large Storage Unit Processor Improved Signal Interpreter Hackware Hacking Suite Protection Hardened Light Armor Plating Weapon Minigun Energy Gun Medium Laser Ballistic Gun Minigun Special Weapon Plasma Cutter Build | -11 -10 -9 -9 ------- Run | Yrd Mat Mat Sto Slots Evolved 2 | . . 2 . Power . | . . . . Propulsion 1 | . . 1 . Utility 1 | . . 1 . Weapon . | . . . . Parts Attached 66 | 7 . 34 25 Power 8 | 1 . 6 1 Engine 7 | 1 . 5 1 Core 1 | . . 1 . Reactor . | . . . . Propulsion 25 | 2 . 10 13 Treads 23 | . . 10 13 Leg 2 | 2 . . . Wheel . | . . . . Hover . | . . . . Flight . | . . . . Utility 16 | 2 . 9 5 Device 2 | 1 . 1 . Storage 3 | 1 . 2 . Processor 1 | . . 1 . Hackware 1 | . . . 1 Protection 9 | . . 5 4 Artifact . | . . . . Weapon 17 | 2 . 9 6 Energy Gun 4 | 2 . 1 1 Energy Cannon . | . . . . Ballistic Gun 12 | . . 8 4 Ballistic Cannon . | . . . . Launcher . | . . . . Special Weapon 1 | . . . 1 Impact Weapon . | . . . . Slashing Weapon . | . . . . Piercing Weapon . | . . . . Special Melee Weapon . | . . . . Unidentified Prototypes 6 | . . 5 1 Parts Lost 16 | . 2 6 8 Power 2 | . 1 . 1 Propulsion 4 | . . 3 1 Utility 5 | . . 1 4 Weapon 5 | . 1 2 2 Highest Loss Streak 4 | . 2 2 4 To Critical Strikes . | . . . . Average Backups 11 | 3 4 10 14 Power 1 | 1 1 1 1 Propulsion . | 1 2 . 1 Utility 4 | . 1 4 6 Weapon 2 | . . 2 3 Tool/Special . | . . . . Unused Backups 16 | . . 5 11 Power 3 | . . 1 2 Propulsion . | . . . . Utility 7 | . . 3 4 Weapon 6 | . . 1 5 Tool/Special . | . . . . Average Slot Usage (%) 98 | . 95 98 98 Engine 9 | . 12 8 10 Core 1 | . . 1 . Treads 31 | . . 31 32 Leg 1 | . 28 . . Device 7 | . 14 11 . Storage 9 | . 12 8 11 Processor 1 | . . 2 . Hackware 2 | . . . 6 Protection 10 | . . 10 12 Ballistic Gun 20 | . . 21 21 Peak Build Rating 21 | 7 7 21 20 Average Rating 17 | 5 6 18 19 On Entrance 7 | . 7 4 20 Naked Turns . | . . . . Heaviest Build 42 | 13 13 40 42 Greatest Support 60 | 20 20 60 60 Greatest Overweight (x) 2 | 1 . 2 . Average Overweight (x) . | . . . . Largest Inventory Capacity 15 | 8 8 15 15 Average Capacity 12 | 7 7 11 15 Most Carried 15 | 8 5 15 15 Average Carried 11 | 3 4 10 14 Final Capacity 15 | 8 5 15 15 Final Carried 15 | 4 5 15 12 Class Distribution -------------------- 86% | Scavenger-Mutant 13% | Mutant Dominant Class ---------------- Mutant | -10/Materials Scavenger-Mutant | -9/Materials Scavenger-Mutant | -9/Storage Resources | -11 -10 -9 -9 ----------- Run | Yrd Mat Mat Sto Matter Collected 3019 | 270 . 1755 994 Remotely . | . . . . Salvage Created 4357 | 85 114 2266 1892 Parts 281 | 9 4 134 134 Haulers Intercepted 6 | . . 3 3 Recyclers Shooed 4 | . 1 3 . Parts Field Recycled . | . . . . Retrieved Matter . | . . . . Parts Self-Destructed . | . . . . Prevented . | . . . . Kills | -11 -10 -9 -9 ------- Run | Yrd Mat Mat Sto Combat Hostiles Destroyed 85 | . 1 43 41 Guns 85 | . 1 43 41 Classes Destroyed 12 | 2 2 6 2 Worker 5 | 1 . 1 3 Builder 3 | . . 3 . Tunneler 3 | 3 . . . Hauler 6 | . . 3 3 Recycler 4 | . 1 3 . Watcher 6 | . . 5 1 Swarmer 15 | . . 7 8 Grunt 45 | . 1 26 18 Brawler 2 | . . . 2 Duelist 3 | . . 2 1 Protector 1 | . . . 1 Sentry 19 | . . 8 11 Best Kill Streak 7 | 3 1 7 7 Combat Bots Only 7 | . 1 7 7 Max Kills in Single Turn 2 | 1 1 2 2 Gunslinging 1 | . . . 1 Exploded . | . . . . Melee . | . . . . Uniques/NPCs Destroyed . | . . . . Combat | -11 -10 -9 -9 -------- Run | Yrd Mat Mat Sto Hostile Shots Fired 437 | . 37 165 235 Missed 98 | . 8 37 53 Hits 339 | . 29 128 182 Melee 10 | . . 2 8 Projectile 329 | . 29 126 174 Critical Strikes 9 | . . 3 6 Damage Taken 4353 | . 347 1599 2407 Core 491 | . 86 141 264 Absorbed by Shields . | . . . . Redirected to Shielding 2 | . . . 2 Core Remaining (%) 82 | 100 65 . . Volleys Fired 309 | 15 13 149 132 Largest 2 | 2 2 2 2 Hottest 100 | 100 100 50 48 Shots Fired 613 | 30 24 298 261 Gun 612 | 30 24 298 260 Cannon . | . . . . Launcher . | . . . . Special 1 | . . . 1 Kinetic 558 | . . 298 260 Thermal 55 | 30 24 . 1 Explosive . | . . . . Electromagnetic . | . . . . Robot Hit Streak 14 | 11 12 14 11 Robot Miss Streak 4 | 3 2 4 3 Penetration Max . | . . . . Secondary Targets 16 | . . 7 9 Max Gunslinging Chain 1 | . . 1 1 Shots Hit Robots 392 | 23 15 181 173 Core Hits 157 | 4 6 71 76 Critical Kills . | . . . . Critical Parts Destroyed . | . . . . Critical Strikes 6 | 3 3 . . Burn 6 | 3 3 . . Melee Attacks . | . . . . Impact . | . . . . Slashing . | . . . . Piercing . | . . . . Sneak Attacks . | . . . . Combat Hostiles . | . . . . Follow-up Attacks . | . . . . Damage Inflicted 6357 | 286 224 3110 2737 Guns 6290 | 286 224 3069 2711 Cannons . | . . . . Explosions . | . . . . Melee . | . . . . Ramming 67 | . . 41 26 Kinetic 5780 | . . 3069 2711 Thermal 510 | 286 224 . . Explosive . | . . . . Electromagnetic . | . . . . Impact . | . . . . Slashing . | . . . . Piercing . | . . . . Highest Corruption 2 | . . . 2 Average Corruption 1 | . . . 1 Corruption Purged . | . . . . Corruption Blocked . | . . . . Effects 9 | . . . 9 Message Errors 3 | . . . 3 Matter Fused 2 | . . . 2 Heat Flow Errors 1 | . . . 1 Data Loss (minor) 3 | . . . 3 Overload Shots . | . . . . Overflow Damage . | . . . . Projectiles . | . . . . Explosions . | . . . . Melee . | . . . . Knockbacks 3 | . . 3 . Impact 3 | . . 3 . Kinetic . | . . . . Secondary . | . . . . Self-Inflicted Damage . | . . . . Shots . | . . . . Rammed 9 | . . 3 6 Targets Rammed 12 | . . 6 6 Kicked . | . . . . Crushed 3 | . . 3 . Highest Temperature 406 | 200 406 18 252 Average Temperature 75 | 76 229 13 38 Received Heat Transfer 1758 | . 192 732 834 Effects 5 | . 4 . 1 Shutdowns 2 | . 2 . . Interference 3 | . 2 . 1 Siege Activations . | . . . . Martial Activations . | . . . . Shielding Activations . | . . . . Robots Disrupted . | . . . . Combat Hostiles . | . . . . Robots Corrupted . | . . . . Combat Hostiles . | . . . . Parts Fried . | . . . . Impact Corruptions . | . . . . Robots Melted . | . . . . Combat Hostiles . | . . . . Parts Melted 2 | 1 1 . . Heat Transferred 1961 | 1073 888 . . Parts Sabotaged . | . . . . Parts Stolen . | . . . . Parts Stripped . | . . . . Power Chain Reactions . | . . . . Alert | -11 -10 -9 -9 ------- Run | Yrd Mat Mat Sto Maximum Alert Level 3 | . . 2 3 Low Security (%) 29 | 100 100 37 . Level 1 18 | . . 16 28 Level 2 41 | . . 46 40 Level 3 9 | . . . 31 Level 4 . | . . . . Level 5 . | . . . . High Security . | . . . . Max Security . | . . . . Peak Influence 955 | 5 30 673 955 Initial 259 | . . . 259 Average 408 | . 6 358 586 Influence Increases 2604 | 20 43 1313 1228 Destroy 0b10 Robot/C 1680 | . 20 860 800 Destroy 0b10 Robot/NC 140 | 20 5 75 40 Destroy Leader 444 | . 10 226 208 Successful Hack 86 | . 8 55 23 Select Force Hacks 30 | . . . 30 Disable Machine 60 | . . 30 30 Destroy Structure 14 | . . 7 7 Lose Combat Pursuer 150 | . . 60 90 Influence Decreases 1687 | 20 43 698 926 Entered New Map 356 | . . . 356 Time Decay 1171 | 20 23 638 490 Lost Part 160 | . 20 60 80 Squads Dispatched 18 | . 3 6 9 Investigation 8 | . 2 2 4 Extermination . | . . . . Reinforcement 5 | . 1 4 . Assault 2 | . . . 2 Garrison 3 | . . . 3 Intercept . | . . . . Searches Triggered . | . . . . Construction Impeded . | . . . . Haulers Reinforced . | . . . . Active Scanning Responses . | . . . . Cargo Convoy Interrupts . | . . . . Stealth | -11 -10 -9 -9 --------- Run | Yrd Mat Mat Sto Distress Signals 5 | . 1 3 1 Communications Jammed . | . . . . Distress Signals . | . . . . Times Spotted 119 | . 6 54 59 Peak Tracking Total 7 | . 5 7 7 Tactical Retreats 7 | . . 3 4 Traps | -11 -10 -9 -9 ------- Run | Yrd Mat Mat Sto Traps Triggered 6 | . 1 3 2 Indirectly . | . . . . Trap Hack Attempts . | . . . . Triggered . | . . . . Disarmed 1 | . . . 1 Reprogrammed . | . . . . Reused . | . . . . Traps Extracted . | . . . . Installed . | . . . . Triggered . | . . . . Machines | -11 -10 -9 -9 ---------- Run | Yrd Mat Mat Sto Machines Disabled 4 | . . 2 2 Max in Single Turn 1 | . . 1 1 Garrison Access 1 | . . . 1 Machines Repaired . | . . . . Machines Dismantled 1 | . . . 1 Machines Sabotaged . | . . . . Overloaded Fab Kills . | . . . . Hacking | -11 -10 -9 -9 --------- Run | Yrd Mat Mat Sto Machines Accessed 22 | . 2 8 12 Terminals 19 | . 2 8 9 Fabricators . | . . . . Repair Stations . | . . . . Recycling Units 2 | . . . 2 Scanalyzers . | . . . . Garrison Access 1 | . . . 1 Total Hacks 63 | . 7 20 36 Successful 40 | . 5 10 25 Failed 23 | . 2 10 11 Catastrophic . | . . . . Database Lockouts . | . . . . Manual 48 | . 5 15 28 Terminals 59 | . 7 20 32 Fabricators . | . . . . Repair Stations . | . . . . Recycling Units 2 | . . . 2 Scanalyzers . | . . . . Garrison Access 2 | . . . 2 Terminal Hacks 11 | . 2 2 7 Part Schematic 1 | . . . 1 Open Door 1 | . . . 1 Emergency Access Points 2 | . . . 2 Locate Traps 1 | . . . 1 Disarm Traps 1 | . . . 1 Dispatch Records 1 | . . 1 . Recall Investigation 1 | . 1 . . Hauler Manifests 1 | . 1 . . Zone Layout 2 | . . 1 1 Fabricator Hacks . | . . . . Repair Station Hacks . | . . . . Recycling Unit Hacks . | . . . . Scanalyzer . | . . . . Garrison Access Hacks 1 | . . . 1 Seal Access 1 | . . . 1 Unauthorized Hacks 28 | . 3 8 17 Terminals 26 | . 3 8 15 Track 1 | . . . 1 Botnet 11 | . 2 3 6 Operators 1 | . . . 1 Skim 13 | . 1 5 7 Fabricators . | . . . . Repair Stations . | . . . . Recycling Units 2 | . . . 2 Reject 1 | . . . 1 Tunnel 1 | . . . 1 Scanalyzers . | . . . . Garrison Access . | . . . . Data Cores Recovered . | . . . . Used . | . . . . Hacking Detections 12 | . 2 6 4 Full Trace Events 4 | . 1 1 2 Feedback Events . | . . . . Feedback Blocked . | . . . . Robot Schematics Acquired . | . . . . Robots Built . | . . . . Authchips . | . . . . Time . | . . . . Total Robot Build Rating . | . . . . Part Schematics Acquired 1 | . . . 1 Parts Built . | . . . . Authchips . | . . . . Time . | . . . . Total Part Build Rating . | . . . . Parts Repaired . | . . . . Time . | . . . . Parts Recycled . | . . . . Recycled Matter . | . . . . Retrieved Matter . | . . . . Retrieved Components . | . . . . Parts Scanalyzed . | . . . . Part Schematics Acquired . | . . . . Parts Damaged . | . . . . Bothacking | -11 -10 -9 -9 ------------ Run | Yrd Mat Mat Sto Used RIF Installer . | . . . . Robots Hacked . | . . . . Non-combat . | . . . . Combat . | . . . . Robot Hacks Applied . | . . . . Relay Couplers Released . | . . . . Fabnet Peak Effective % . | . . . . Robots Rewired . | . . . . Allies Hacked . | . . . . Hacks Repelled . | . . . . Allies | -11 -10 -9 -9 -------- Run | Yrd Mat Mat Sto Total Allies . | . . . . Largest Group . | . . . . Highest-Rated Group . | . . . . Highest-Rated Ally . | . . . . Total Orders . | . . . . Ally Attacks . | . . . . Total Damage . | . . . . Kills . | . . . . Allies Corrupted . | . . . . Allies Melted . | . . . . Intel | -11 -10 -9 -9 ------- Run | Yrd Mat Mat Sto Active Infowar (turns) 123 | 24 99 . . Seismic 123 | 24 99 . . Robot Analysis Total . | . . . . Derelict Logs Recovered . | . . . . Drone Launches . | . . . . Drone Recoveries . | . . . . Exploration | -11 -10 -9 -9 ------------- Run | Yrd Mat Mat Sto Turns Passed 4100 | 131 117 2571 1281 Spaces Moved 1615 | 65 78 991 481 Core 84 | 24 21 39 . Treads 1424 | . . 943 481 Legs 107 | 41 57 9 . Wheels . | . . . . Hover . | . . . . Flight . | . . . . Fastest Speed 50 | 50 50 50 160 Average Speed 152 | 99 101 156 160 Slowest Speed 240 | 120 120 240 160 Overloaded Moves . | . . . . Propulsion Burnouts . | . . . . Robots Hopped . | . . . . Potential Cave-ins . | . . . . Cave-ins Triggered . | . . . . Exploration Rate (%) 49 | 4 17 91 85 Regions Visited 3 Branch Regions 1 Pre-discovered Areas 5 | . . 4 1 Known Exits Taken . | . . . . Unknown Exits Taken 3 | 1 1 1 . Scrap Searched . | . . . . Spaces Dug . | . . . . Terrain Destroyed . | . . . . Melee . | . . . . Projectile . | . . . . AOE . | . . . . Terrain Rammed . | . . . . Walls Destroyed . | . . . . Machines Disabled . | . . . . Actions | -11 -10 -9 -9 --------- Run | Yrd Mat Mat Sto Total 2683 | 101 92 1765 725 Wait 554 | 5 . 508 41 Move 1612 | 64 77 990 481 Hop . | . . . . Pick Up 61 | 10 1 39 11 Fast Attach 10 | 1 . 9 . Attach 31 | 6 . 17 8 Detach . | . . . . Swap 42 | . . 19 23 Drop 48 | . 1 28 19 Fire 309 | 15 13 149 132 Melee . | . . . . Ram . | . . . . Kick . | . . . . Crush 12 | . . 6 6 Escape Stasis . | . . . . Rewire . | . . . . Trap . | . . . . Miscellaneous 4 | . . . 4 Route ------- -11/Scrapyard -10/Materials -9/Materials (discovered 5 exits: *Mat x3 / *Min / *Sto) -9/Storage (discovered 2 exits: Mat / Rec) History --------- Turn | Location | Event 6 | -11/Scrapyard | Discovered new exit (range 15) 132 | -11/Scrapyard | Entered Materials 242 | -10/Materials | Discovered new exit (range 16) 249 | -10/Materials | Entered another Materials area 249 | -9/Materials | Evolved 2 slots: Propulsion x1, Utility x1 319 | -9/Materials | Build established: Mutant 390 | -9/Materials | Destroyed 7 combat bots 674 | -9/Materials | Build established: Scavenger-Mutant 932 | -9/Materials | Discovered new exit (range 4) 1174 | -9/Materials | Discovered new exit (range 14) 1570 | -9/Materials | Discovered new exit (range 16) 1656 | -9/Materials | Discovered new exit (range 10) 2014 | -9/Materials | Discovered new exit (range 14) 2442 | -9/Materials | Learned location of Zion (-7) 2508 | -9/Materials | Learned 2 Storage zone layouts 2527 | -9/Materials | Identified exit to Mines 2650 | -9/Materials | Learned location of 1 exit from Storage 2820 | -9/Materials | Entered Storage 2821 | -9/Storage | Identified exit to Materials 2821 | -9/Storage | Identified exit to Recycling 3281 | -9/Storage | Core integrity fell below 50% 3620 | -9/Storage | First assault squad dispatched 3641 | -9/Storage | Garrison activated, responded to threat 3724 | -9/Storage | Lost 4 parts (1p2u1w) 3733 | -9/Storage | Destroyed 7 combat bots 3903 | -9/Storage | Core integrity fell below 20% 4101 | -9/Storage | Destroyed by G-34 Mercenary with Small Laser Last Messages --------------- 04045_ M-13 Machinist unfolds itself. 04047_ Acquired 6 matter. 04050_ Acquired 4 matter. 04052_ G-34 Mercenary destroyed. 04055_ G-47 Trooper destroyed. 04055_ Switching to secondary target: Y-45 Defender. 04057_ Critical hit (Burn: +37). 04064_ System corrupted: Component data lost. 04073_ K-01 Serf collects debris. 04073_ G-34 Mercenary destroyed. 04073_ Switching to secondary target: Y-45 Defender. 04076_ K-01 Serf collects debris. 04077_ Lgt. Armor Plating destroyed. 04078_ Critical hit (Burn: +37). 04079_ Overheating: System interference. 04079_ Imp. Assault Rifle temporarily disabled. 04079_ Hrd. Light Armor Plating destroyed. 04081_ K-01 Serf collects debris. 04084_ Lgt. Treads destroyed. 04087_ K-01 Serf collects debris. Map ----- +----------------------------------------------------+ | | | | | | | | | | | ?????????????###########?????????????????????????? | | ?????????????# #??????????????????????? | | ?????????????# T """ """ #??????????????????????? | | R????????????# """ """ #??????????????????????? | | "########???# """ """ #??????????????????????? | | #???# #??????????????????????? | | #???##+###+#######??????????????????????? | | ######! +??????????????????????? | | ###### !%! %%#######??????????????????????? | | #????# #########%=#????????????????????????????? | | #????# #?? ##*!#????????????????????????????? | | #????# #??"" ##*%##???????????????????????????? | | ###### #?"R # =[ ############????????????????? | | # #?""" # [ ?????>????????? | | # !# #! [ ??????????????? | | # [=# # = ###########?????????????????? | | "" +[![+[! //## ##???????????????????????????? | | """ =#!=*# /!## #????????????????????????????? | | """ #[%%# ## #????????????????????????????? | | #[[[#?""" ## ######## #?????????????? | | # =#?""" ## g @ + #?????????????? | | ###### #??"" ##+######### #?????????????? | | ??? # #?? #???????? ## #?????????????? | | ?""? + #???#?##???????? ## #??###????????? | | """ # #??????????????? ## #### ######???? | | """ # *#??????????????? ## #][* ! #???? | | """ #/%%#??????????????? ## #![= #???? | | """?# ! #??????????????? ##########%""" """ #???? | | ????# =#??????????????? #??# #!""" """ #???? | | ?????# #??#####???????? #??# #=""" """ #???? | | ?????# #??#"""#??########??# T +! #???? | | ?????# ####"Y"#### #???# # #???? | | ?????# # #???# # #???? | | ?????# # ] T #???##%= ############???? | | ###### # #????#[ # "T" #?????? | | %= ! ########### #????# # #?????? | | [[ #?????????## ##????# # #?????? | | %* #??????????# #?????# + #?????? | | +####### #??????????# #?????# # !! #?????? | | #?# #??????????# #?????#[ # !! #?????? | | #?# ############ #?????#%!=# ! #?????? | | ! =#?#%##=[| # #?????#=%[# #?????? | | *]###!##*= # #######^^ # #?????? | | =%/ [=%+**= !# ##"T"#####?????? | | %=###+##%/ + ######?????????? | +----------------------------------------------------+ Best States ------------- Heat Dissipation 42 Energy Generation 14 Energy Capacity 280 Matter Stores 300 Matter Capacity 300 Sight Range 16 Terrain Scan Density 10 Armor Coverage 300 Core Shielding 20 Evasion (%) 55 Recoil Reduction 3 Offensive Hacking 10 Item Schematics ----------------- Hvy. EM Pulse Gun | -9/Storage | Hacked Robot Schematics ------------------ None Fabricated ------------ Nothing Repaired ---------- Nothing Alien Tech Used ----------------- None Achievements -------------- None Challenges ------------ None Game ------ Seed ColdJunkMatterbank Manual? 0 Play Time 00:33:34 Cumulative 118.9 hours Start 2025.08.05 @ 09:32:19 End 2025.08.05 @ 10:08:31 Sessions 1 Manual Loads 0 Difficulty Rogue Special Mode None Game No. 182 Rogue 182 Adventurer 0 Explorer 0 Win Type - Total 1 Types 1/0/0/0/0/0/0/0/0/0 Lore% 68 Gallery% 59 Achievement% 51 Wizard Run 0 Options --------- Layout 0 ASCII 0 Keyboard 0 Movement Mouse Keybinds 0 Fullscreen 1 Font 16/SmallcapsGlow Map View 75x55 Zoom Use 0% Tactical HUD 1 Map Filters NONE Filters NONE Steam 1 RUN: fa07a28c-ed40-4f81-b4fb-16daa25f265d